[Event "Uhlenkoeper-Open 2024"]
[Site "Uelzen"]
[Date "2024.12.28"]
[Round "3.7"]
[White "Leppert, Stefan"]
[Black "Bargsten, Justus"]
[Result "0-1"]
[ECO "D35"]
[WhiteElo "1930"]
[BlackElo "2228"]
[Annotator "RC"]
[PlyCount "72"]
[EventDate "2024.12.27"]
[EventType "swiss"]
[EventCountry "GER"]
[SourceTitle "playchess.com"]
[Source "ChessBase"]
[SourceQuality "1"]
[TimeControl "40/5400+30:1800+30"]

1. d4 {[%emt 0:00:03]} d5 {[%emt 0:00:05]} 2. c4 {[%emt 0:00:06]} e6 {[%emt 0:00:04]} 3. Nc3 {[%emt 0:00:08]} Nf6 {[%emt 0:00:03]} 4. cxd5 {[%emt 0:00:09]} exd5 {[%emt 0:00:04]} 5. Bg5 {[%emt 0:00:10]} c6 {[%emt 0:00:03]} 6. Qc2 {[%emt 0:00:08]} Bd6 {[%emt 0:00:08]} 7. e3 {[%emt 0:00:16]} O-O {[%emt 0:00:05]} 8. Bd3 {[%emt 0:00:07]} h6 {[%emt 0:00:04]} 9. Bh4 {[%emt 0:00:08]} Re8 {[%emt 0:00:04]} 10. Nf3 {[%emt 0:00:30]} Be6 {[%emt 0:00:08]} 11. O-O {[%emt 0:00:11]} Nbd7 {[%emt 0:00:04]} 12. Rab1 {[%emt 0:00:15]} a5 {[%emt 0:00:27]} 13. a3 {[%emt 0:00:18]} Qb8 {[%emt 0:00:47]} 14. Bg3 {[%emt 0:02:41]} Bxg3 {[%emt 0:00:33]} 15. hxg3 {[%emt 0:00:12]} Qd6 {[%emt 0:15:07]} 16. Na4 {[%emt 0:07:22]} b6 {[%emt 0:06:07]} 17. Rfc1 {[%emt 0:01:29]} Rec8 {[%emt 0:01:14]} 18. b4 {[%emt 0:07:11]} b5 {[%emt 0:03:51]} 19. Nc5 {[%emt 0:01:25]} Qe7 {[%emt 0:06:27]} 20. Qb2 {[%emt 0:05:39]} Nb6 {[%emt 0:01:45]} 21. Ne5 {[%emt 0:01:05]} Ne8 {[%emt 0:12:54]} 22. Ra1 {[%emt 0:05:58]} a4 {[%emt 0:05:54]} 23. Qc2 {[%emt 0:07:03]} Rc7 {[%emt 0:06:25]} 24. Ra2 {[%emt 0:08:15]} Nc4 {[%emt 0:01:18]} 25. Nxe6 {[%emt 0:07:31]} Qxe6 {[%emt 0:00:59]} 26. Nxc4 {[%emt 0:05:47]} bxc4 {[%emt 0:00:58]} 27. Be2 {[%emt 0:01:43]} Nd6 {[%emt 0:00:24]} 28. Bf3 {[%emt 0:02:37]} f5 {[%emt 0:00:46]} 29. Raa1 {[%emt 0:06:23]} g5 {[%emt 0:00:22]} 30. Re1 {[%emt 0:00:21]} g4 {[%emt 0:03:04]} 31. Bd1 {[%emt 0:06:02]} h5 {[%emt 0:01:57]} 32. Qc1 {[%emt 0:00:28]} Qf6 {[%emt 0:01:02]} 33. Bc2 {[%emt 0:01:05]} Rh7 {[%emt 0:03:38]} 34. Qb1 {[%emt 0:03:57]} h4 {[%emt 0:00:20]} 35. Kf1 {[%emt 0:01:25]} hxg3 {[%emt 0:00:34]} 36. fxg3 {[%emt 0:00:07]} Ne4 {[%emt 0:03:06]} 0-1

[Event "Uhlenkoeper-Open 2024"]
[Site "Uelzen"]
[Date "2024.12.28"]
[Round "3.8"]
[White "Nyenhuis, Yannek"]
[Black "Martin, Dennis"]
[Result "0-1"]
[ECO "B33"]
[WhiteElo "1943"]
[BlackElo "2005"]
[Annotator "NA RC"]
[PlyCount "74"]
[EventDate "2024.12.27"]
[EventType "swiss"]
[EventCountry "GER"]
[SourceTitle "playchess.com"]
[Source "ChessBase"]
[SourceQuality "1"]
[TimeControl "40/5400+30:1800+30"]

1. e4 {[%emt 0:00:04]} c5 {[%emt 0:00:08]} 2. Nf3 {[%emt 0:00:21]} Nc6 {[%emt 0:00:02]} 3. d4 {[%emt 0:00:12]} cxd4 {[%emt 0:00:01]} 4. Nxd4 {[%emt 0:00:06]} Nf6 {[%emt 0:00:08]} 5. Nc3 {[%emt 0:00:07]} e5 {[%emt 0:00:09]} 6. Ndb5 {[%emt 0:00:06]} d6 {[%emt 0:00:06]} 7. Bg5 {[%emt 0:00:09]} a6 {[%emt 0:00:06]} 8. Na3 {[%emt 0:00:13]} b5 {[%emt 0:00:02]} 9. Nab1 {[%emt 0:00:22]} Be7 {[%emt 0:00:04]} 10. Bxf6 {[%emt 0:00:20]} Bxf6 {[%emt 0:00:11]} 11. a4 {[%emt 0:00:38]} b4 {[%emt 0:00:08]} 12. Nd5 {[%emt 0:00:06]} Rb8 {[%emt 0:01:00]} 13. Bc4 {[%emt 0:02:12]} O-O {[%emt 0:00:19]} 14. O-O {[%emt 0:00:07]} Bg5 {[%emt 0:03:42]} 15. Qd3 {[%emt 0:06:44]} a5 {[%emt 0:07:03]} 16. Bb5 {[%emt 0:06:15]} Ne7 {[%emt 0:00:13]} 17. c3 {[%emt 0:01:47]} Nxd5 {[%emt 0:00:37]} 18. Qxd5 {[%emt 0:00:04]} Bb7 {[%emt 0:03:36]} 19. Qd3 {[%emt 0:16:27]} d5 {[%emt 0:01:28]} 20. exd5 {[%emt 0:03:06]} Qxd5 {[%emt 0:00:07]} 21. Qxd5 {[%emt 0:05:18]} Bxd5 {[%emt 0:00:03]} 22. cxb4 {[%emt 0:00:21]} axb4 {[%emt 0:00:04]} 23. Re1 {[%emt 0:12:05]} Rfc8 {[%emt 0:02:32]} 24. h4 {[%emt 0:11:29]} Bh6 {[%emt 0:02:12]} 25. g4 {[%emt 0:04:40]} Bf4 {[%emt 0:00:26]} 26. Bf1 {[%emt 0:05:10]} Be6 {[%emt 0:02:01]} 27. Bg2 {[%emt 0:03:25]} Rc1 {[%emt 0:08:39]} 28. Rxc1 {[%emt 0:03:52]} Bxc1 {[%emt 0:00:02]} 29. Nd2 {[%emt 0:00:35]} Bxb2 {[%emt 0:00:22]} 30. Rb1 {[%emt 0:00:49]} Bc3 {[%emt 0:00:39]} 31. Ne4 {[%emt 0:00:15]} Bd4 {[%emt 0:00:16]} 32. a5 {[%emt 0:07:36]} Ba2 {[%emt 0:04:23]} 33. Rd1 {[%emt 0:00:17]} Rb5 {[%emt 0:01:54]} 34. Rc1 {[%emt 0:00:48]} Rb8 {[%emt 0:03:32]} 35. a6 {[%emt 0:05:36]} b3 {[%emt 0:00:25]} 36. Nc5 {[%emt 0:01:01]} b2 {[%emt 0:00:25]} 37. Rb1 {[%emt 0:02:53]} Bxc5 {[%emt 0:00:05]} 0-1

[Event "Uhlenkoeper-Open 2024"]
[Site "Uelzen"]
[Date "2024.12.28"]
[Round "3.9"]
[White "Carmesin, Leon Lucas Finn"]
[Black "Krueger, Daniel"]
[Result "0-1"]
[ECO "D36"]
[WhiteElo "2081"]
[BlackElo "1858"]
[Annotator "NA RC"]
[PlyCount "64"]
[EventDate "2024.12.27"]
[EventType "swiss"]
[EventCountry "GER"]
[SourceTitle "playchess.com"]
[Source "ChessBase"]
[SourceQuality "1"]
[TimeControl "40/5400+30:1800+30"]

1. d4 {[%emt 0:22:59]} d5 {[%emt 0:00:45]} 2. c4 {[%emt 0:00:02]} e6 {[%emt 0:00:05]} 3. Nc3 {[%emt 0:00:08]} Nf6 {[%emt 0:00:06]} 4. cxd5 {[%emt 0:00:06]} exd5 {[%emt 0:00:06]} 5. Bg5 {[%emt 0:00:04]} Be7 {[%emt 0:00:06]} 6. e3 {[%emt 0:00:04]} O-O {[%emt 0:00:11]} 7. Bd3 {[%emt 0:00:08]} Re8 {[%emt 0:00:20]} 8. Nge2 {[%emt 0:00:13]} Nbd7 {[%emt 0:01:32]} 9. O-O {[%emt 0:00:25]} c6 {[%emt 0:00:21]} 10. Qc2 {[%emt 0:05:06]} h6 {[%emt 0:00:09]} 11. Bh4 {[%emt 0:00:07]} Nh5 {[%emt 0:00:05]} 12. Bxe7 {[%emt 0:02:48]} Qxe7 {[%emt 0:00:08]} 13. Rab1 {[%emt 0:00:41]} Nb6 {[%emt 0:06:17]} 14. b4 {[%emt 0:01:34]} a6 {[%emt 0:04:53]} 15. a4 {[%emt 0:00:50]} Bg4 {[%emt 0:00:40]} 16. Ng3 {[%emt 0:01:22]} Nxg3 {[%emt 0:02:03]} 17. hxg3 {[%emt 0:00:02]} h5 {[%emt 0:12:39]} 18. b5 {[%emt 0:01:06]} axb5 {[%emt 0:02:32]} 19. axb5 {[%emt 0:00:13]} c5 {[%emt 0:00:29]} 20. dxc5 {[%emt 0:04:45]} Qxc5 {[%emt 0:00:09]} 21. Rfc1 {[%emt 0:04:01]} Rec8 {[%emt 0:04:32]} 22. Qd2 {[%emt 0:01:32]} Nc4 {[%emt 0:11:14]} 23. Bxc4 {[%emt 0:06:06]} dxc4 {[%emt 0:00:16]} 24. Ne4 {[%emt 0:00:15]} Qe5 {[%emt 0:01:42]} 25. Nc3 {[%emt 0:04:52]} Rd8 {[%emt 0:11:12]} 26. Qe1 {[%emt 0:01:24]} Rd3 {[%emt 0:01:56]} 27. Ne2 {[%emt 0:09:57]} Ra2 {[%emt 0:06:42]} 28. Nf4 {[%emt 0:03:50]} Rdd2 {[%emt 0:02:18]} 29. Rxc4 {[%emt 0:04:23]} g5 {[%emt 0:00:28]} 30. Nh3 {[%emt 0:11:41]} Bxh3 {[%emt 0:00:17]} 31. gxh3 {[%emt 0:00:01]} Rxf2 {[%emt 0:00:08]} 32. Rc8+ {[%emt 0:00:26]} Kh7 {[%emt 0:00:44]} 0-1

[Event "Uhlenkoeper-Open 2024"]
[Site "Uelzen"]
[Date "2024.12.28"]
[Round "3.10"]
[White "Raddatz, Michael"]
[Black "Petersen, Malte"]
[Result "1-0"]
[ECO "C54"]
[WhiteElo "1927"]
[BlackElo "1780"]
[Annotator "NA RC"]
[PlyCount "73"]
[EventDate "2024.12.27"]
[EventType "swiss"]
[EventCountry "GER"]
[SourceTitle "playchess.com"]
[Source "ChessBase"]
[SourceQuality "1"]
[TimeControl "40/5400+30:1800+30"]

1. e4 {[%emt 0:00:10]} e5 {[%emt 0:00:33]} 2. Nf3 {[%emt 0:00:36]} Nc6 {[%emt 0:00:05]} 3. Bc4 {[%emt 0:00:39]} Bc5 {[%emt 0:00:08]} 4. c3 {[%emt 0:01:02]} Nf6 {[%emt 0:00:10]} 5. d3 {[%emt 0:00:29]} d6 {[%emt 0:02:28]} 6. O-O {[%emt 0:03:01]} O-O {[%emt 0:02:03]} 7. Bg5 {[%emt 0:02:55]} Qe7 {[%emt 0:03:52]} 8. b4 {[%emt 0:03:08]} Bb6 {[%emt 0:00:12]} 9. a4 {[%emt 0:02:03]} a5 {[%emt 0:01:00]} 10. b5 {[%emt 0:00:50]} Nb8 {[%emt 0:00:51]} 11. Nbd2 {[%emt 0:01:38]} Be6 {[%emt 0:03:22]} 12. d4 {[%emt 0:03:01]} h6 {[%emt 0:07:25]} 13. Bh4 {[%emt 0:02:33]} Nbd7 {[%emt 0:03:11]} 14. Qb3 {[%emt 0:05:07]} Bxc4 {[%emt 0:06:04]} 15. Qxc4 {[%emt 0:06:05]} g5 {[%emt 0:02:27]} 16. Bg3 {[%emt 0:06:52]} exd4 {[%emt 0:01:58]} 17. Nxd4 {[%emt 0:05:20]} Nxe4 {[%emt 0:02:35]} 18. Nf5 {[%emt 0:00:52]} Qf6 {[%emt 0:04:40]} 19. Qxe4 {[%emt 0:02:16]} Rae8 {[%emt 0:02:11]} 20. Qc2 {[%emt 0:00:47]} h5 {[%emt 0:07:43]} 21. h4 {[%emt 0:04:06]} Re2 {[%emt 0:00:18]} 22. Nd4 {[%emt 0:14:14]} Bxd4 {[%emt 0:00:47]} 23. cxd4 {[%emt 0:00:32]} gxh4 {[%emt 0:01:07]} 24. Qd3 {[%emt 0:08:46]} Rfe8 {[%emt 0:07:54]} 25. Bh2 {[%emt 0:03:59]} h3 {[%emt 0:01:38]} 26. Qxh3 {[%emt 0:00:46]} Rxd2 {[%emt 0:01:07]} 27. Qxd7 {[%emt 0:00:10]} Ree2 {[%emt 0:00:39]} 28. Bg3 {[%emt 0:03:53]} Qg7 {[%emt 0:05:07]} 29. Qd8+ {[%emt 0:02:51]} Kh7 {[%emt 0:00:17]} 30. Qh4 {[%emt 0:02:55]} Qg6 {[%emt 0:02:37]} 31. Rac1 {[%emt 0:03:23]} Re4 {[%emt 0:04:56]} 32. Qd8 {[%emt 0:01:05]} Rdxd4 {[%emt 0:04:05]} 33. Rxc7 {[%emt 0:01:47]} h4 {[%emt 0:02:36]} 34. Qf8 {[%emt 0:00:25]} hxg3 {[%emt 0:03:07]} 35. Rxf7+ {[%emt 0:00:10]} Qxf7 {[%emt 0:00:07]} 36. Qxf7+ {[%emt 0:00:07]} Kh6 {[%emt 0:01:20]} 37. fxg3 {[%emt 0:00:14]} 1-0

[Event "Uhlenkoeper-Open 2024"]
[Site "Uelzen"]
[Date "2024.12.28"]
[Round "4.1"]
[White "Glek, Igor"]
[Black "Stopa, Jacek"]
[Result "1/2-1/2"]
[ECO "B06"]
[WhiteElo "2431"]
[BlackElo "2323"]
[Annotator "TA"]
[PlyCount "37"]
[EventDate "2024.12.27"]
[EventType "swiss"]
[EventCountry "GER"]
[SourceTitle "playchess.com"]
[Source "ChessBase"]
[SourceQuality "1"]
[TimeControl "40/5400+30:1800+30"]

{[%evp 14,37,25,16,19,38,42,40,52,23,12,0,47,13,0,0,0,0,-8,0,0,0,-1,0,0,-20]} 1. e4 {[%emt 0:05:17]} g6 {[%emt 0:00:06]} 2. d4 {[%emt 0:00:50]} Bg7 {[%emt 0:00:05]} 3. Nc3 {[%emt 0:00:34]} d6 {[%emt 0:00:08]} 4. f4 {[%emt 0:00:44]} a6 {[%emt 0:00:15]} 5. Nf3 {[%emt 0:00:49]} b5 {[%emt 0:00:13]} 6. Bd3 {[%emt 0:00:35]} Nd7 {[%emt 0:00:06]} 7. Be3 {[%emt 0:08:41]} Bb7 {[%emt 0:04:23]} 8. e5 {[%emt 0:05:47]} c5 {[%emt 0:00:56]} 9. Be4 {[%emt 0:00:57]} Bxe4 {[%emt 0:03:38]} 10. Nxe4 {[%emt 0:00:10]} Nh6 {[%emt 0:03:59]} 11. c3 {[%emt 0:02:33][%cal Bc2c3,Bc3d4,Bd4e5,Be5f6][%mdl 32]} cxd4 {[%emt 0:07:27]} 12. cxd4 {[%emt 0:00:16]} Qb6 {[%emt 0:06:27]} (12... Nb6 $11 {might be stronger.}) 13. Bf2 {[%emt 0:05:48]} O-O {[%emt 0:01:26]} 14. O-O {[%emt 0:00:38]} Ng4 {[%emt 0:01:34]} 15. Qe2 {[%emt 0:00:04]} Nxf2 {[%emt 0:00:32]} 16. Qxf2 {[%emt 0:01:23]} dxe5 {[%emt 0:06:05]} 17. dxe5 {[%emt 0:02:11]} f6 {[%emt 0:00:05]} 18. Rad1 {[%emt 0:03:50]} Qc6 {[%emt 0:05:14]} 19. exf6 {[%emt 0:08:22]} 1/2-1/2

[Event "Uhlenkoeper-Open 2024"]
[Site "Uelzen"]
[Date "2024.12.28"]
[Round "4.2"]
[White "Bagrationi, Alexander"]
[Black "Parvanyan, Ashot"]
[Result "1/2-1/2"]
[ECO "A70"]
[WhiteElo "2384"]
[BlackElo "2399"]
[Annotator "TA"]
[PlyCount "82"]
[EventDate "2024.12.27"]
[EventType "swiss"]
[EventCountry "GER"]
[SourceTitle "playchess.com"]
[Source "ChessBase"]
[SourceQuality "1"]
[TimeControl "40/5400+30:1800+30"]

{[%evp 16,82,25,14,6,0,11,14,21,25,14,5,29,27,29,23,15,0,8,0,0,0,31,23,38,28,31,31,22,32,22,15,22,9,12,11,13,9,29,31,12,37,13,20,31,-17,-24,-18,-21,-22,-20,-20,-16,-17,-22,-17,-8,-8,-8,-14,-12,-45,-71,-63,-60,-52,0,-58,0]} 1. d4 {[%emt 0:00:05]} Nf6 {[%emt 0:00:08]} 2. c4 {[%emt 0:00:10]} g6 {[%emt 0:00:48]} 3. Nc3 {[%emt 0:00:21]} Bg7 {[%emt 0:00:05]} 4. e4 {[%emt 0:00:23]} d6 {[%emt 0:00:04]} 5. h3 {[%emt 0:00:56]} O-O {[%emt 0:00:07]} 6. Be3 {[%emt 0:00:12]} c5 {[%emt 0:01:04]} 7. d5 {[%emt 0:01:47]} e6 {[%emt 0:00:07]} 8. Nf3 {[%emt 0:00:39][%cal Bg1f3,Bf3d2,Bd2c4][%mdl 32]} exd5 {[%emt 0:00:41]} 9. cxd5 {[%emt 0:04:30]} Re8 {[%emt 0:00:51]} 10. Nd2 {[%emt 0:03:20]} a6 {[%emt 0:00:35][%cal Of6e4]} 11. a4 {[%emt 0:00:10]} Nxe4 $1 {[%emt 0:00:13]} 12. Ncxe4 {[%emt 0:02:35]} f5 $1 {[%emt 0:00:06] [#]} 13. Be2 $1 {[%emt 0:01:22]} fxe4 {[%emt 0:00:07]} 14. Nc4 {[%emt 0:00:13]} a5 {[%emt 0:00:10]} 15. Bf4 {[%emt 0:09:59][%cal Oe1g1][%mdl 1024] White has compensation.} Bf8 {[%emt 0:01:30]} 16. O-O {[%emt 0:06:51]} Na6 {[%emt 0:00:50]} 17. Ra3 {[%emt 0:00:55]} Nb4 {[%emt 0:00:06]} 18. Re3 {[%emt 0:00:28]} b5 {[%emt 0:01:28]} 19. axb5 {[%emt 0:04:17]} Bb7 {[%emt 0:00:10]} 20. Ra3 {[%emt 0:05:11]} Bxd5 {[%emt 0:11:50]} 21. Ra4 {[%emt 0:00:41][%cal Oa4b4]} Bxc4 {[%emt 0:43:08]} 22. Bxc4+ {[%emt 0:00:24]} Kg7 {[%emt 0:00:07] Black is weak on the light squares} (22... d5 23. Rxb4 dxc4 24. Rxc4 $16) 23. Rxb4 {[%emt 0:05:59]} axb4 {[%emt 0:03:00]} 24. Qd5 {[%emt 0:02:30] Intending Qg8+ and mate.} Be7 {[%emt 0:00:13][%cal Bf8e7,Be7f6,Bf6a1,Ba1d4,Bd4e5][%mdl 32]} 25. Rd1 {[%emt 0:00:54][%cal Ob5b6]} (25. Qxe4 Bg5 26. Qb7+ Re7 $19) (25. Qf7+ Kh8 26. Qd5 Bf6 27. Bxd6 Bd4 $17 (27... Bxb2 28. Bxc5 Rc8 29. Bxb4 $15)) 25... Kh8 {[%emt 0:12:45]} 26. b3 {[%emt 0:11:14]} ({Of course not} 26. Qxe4 Bg5 $17) 26... Bf6 {[%emt 0:10:55]} 27. Bxd6 {[%emt 0:00:37]} Ra1 {[%emt 0:01:11]} 28. Rxa1 {[%emt 0:00:29]} Bxa1 {[%emt 0:00:05]} 29. Qxc5 {[%emt 0:00:10][%cal Ob5b6]} (29. Bxc5 $2 Qxd5 30. Bxd5 Re5 31. Bxe4 Rxc5 $19) 29... Qf6 $1 {[%emt 0:02:16]} 30. Bg3 {[%emt 0:00:50] This pair of bishops is nice.} (30. Qxb4 $2 {is the wrong capture.} Bd4 31. Bg3 e3 $19) (30. Qc6 $14 Rd8 31. Bg3 (31. Bxb4 Rd1+ 32. Bf1 Qxc6 $17)) 30... Bd4 $11 {[%emt 0:07:54]} 31. Qc6 {[%emt 0:03:07]} Qxc6 {[%emt 0:02:52]} 32. bxc6 {[%emt 0:00:07][%mdl 4096] Endgame Strongly threatening c7. KRB-KB} Be5 $1 {[%emt 0:00:30]} 33. Bh4 {[%emt 0:00:23][%cal Oc6c7]} h6 {[%emt 0:00:30] Threatens to win with ...g5.} 34. f3 $1 {[%emt 0:01:27]} exf3 {[%emt 0:00:31]} 35. gxf3 {[%emt 0:00:07]} g5 {[%emt 0:00:31]} 36. Bf2 {[%emt 0:00:20]} Rc8 {[%emt 0:00:31]} 37. Bd5 {[%emt 0:01:04]} Rd8 {[%emt 0:00:25]} 38. Bc4 {[%emt 0:00:46]} Rd6 {[%emt 0:00:34]} 39. Bb5 {[%emt 0:00:40]} Rd5 {[%emt 0:00:31]} 40. Bc4 {[%emt 0:00:22]} Rd6 {[%emt 0:00:26]} 41. Bb5 {[%emt 0:32:00]} Rd5 {[%emt 0:16:37]} (41... Rd1+ $1 $15 42. Kg2 Bc7) 1/2-1/2

[Event "Uhlenkoeper-Open 2024"]
[Site "Uelzen"]
[Date "2024.12.28"]
[Round "4.3"]
[White "Buecklers, Martin"]
[Black "Stelmaszyk, Nico"]
[Result "0-1"]
[ECO "A07"]
[WhiteElo "1859"]
[BlackElo "2403"]
[Annotator "TA"]
[PlyCount "35"]
[EventDate "2024.12.27"]
[EventType "swiss"]
[EventCountry "GER"]
[SourceTitle "playchess.com"]
[Source "ChessBase"]
[SourceQuality "1"]
[TimeControl "40/5400+30:1800+30"]

{[%evp 9,35,-79,-67,-54,0,-110,-104,-169,-178,-154,-154,-212,-206,-216,-210,-229,-231,-244,-243,-524,-418,-580,-578,-668,-514,-936,-929,-1091]} 1. Nf3 {[%emt 0:00:04]} d5 {[%emt 0:00:05]} 2. g3 {[%emt 0:00:04]} Nd7 {[%emt 0:00:05]} 3. c4 {[%emt 0:02:02]} dxc4 {[%emt 0:00:06]} 4. Na3 {[%emt 0:00:09]} e5 {[%emt 0:08:37]} 5. Qc2 {[%emt 0:08:08]} Bxa3 {[%emt 0:07:46]} 6. bxa3 {[%emt 0:00:05]} b5 {[%emt 0:01:08]} (6... Ngf6 $15) 7. Qe4 {[%emt 0:16:01]} (7. Bg2 $11) 7... Rb8 $17 {[%emt 0:01:21]} 8. Bh3 {[%emt 0:00:55]} (8. Qe3 $17) 8... Ngf6 $19 {[%emt 0:03:46]} 9. Bxd7+ {[%emt 0:05:18]} Nxd7 {[%emt 0:01:34]} (9... Kxd7 10. Qf5+ Kc6 11. Qxe5 $15) 10. Bb2 {[%emt 0:04:21]} (10. d3 $17) 10... Bb7 {[%emt 0:05:00]} 11. Qe3 {[%emt 0:01:46]} f6 {[%emt 0:03:08]} 12. O-O {[%emt 0:02:18]} O-O {[%emt 0:02:47]} 13. a4 {[%emt 0:05:50]} b4 {[%emt 0:04:06]} ({Don't play} 13... bxa4 14. Ba3 Re8 15. Rfd1) 14. Qxa7 $2 {[%emt 0:00:16]} (14. a5 {was necessary.}) 14... Nb6 {[%emt 0:02:19]} 15. a5 {[%emt 0:03:32]} Na4 {[%emt 0:05:28]} 16. Rab1 {[%emt 0:00:08] White is weak on the light squares} c5 {[%emt 0:00:32]} 17. Bc1 {[%emt 0:03:37]} (17. Nxe5 $142 Re8 (17... fxe5 $2 18. a6 $19) 18. a6) 17... Rf7 {[%emt 0:01:07] And now ...Bxf3 would win.} 18. Ra1 {[%emt 0:44:56]} 0-1

[Event "Uhlenkoeper-Open 2024"]
[Site "Uelzen"]
[Date "2024.12.28"]
[Round "4.4"]
[White "Bargsten, Justus"]
[Black "von Estorff, Jacob"]
[Result "0-1"]
[ECO "B31"]
[WhiteElo "2228"]
[BlackElo "2209"]
[Annotator "RC"]
[PlyCount "54"]
[EventDate "2024.12.27"]
[EventType "swiss"]
[EventCountry "GER"]
[SourceTitle "playchess.com"]
[Source "ChessBase"]
[SourceQuality "1"]
[TimeControl "40/5400+30:1800+30"]

1. e4 {[%emt 0:00:02]} c5 {[%emt 0:00:27]} 2. Nf3 {[%emt 0:00:05]} Nc6 {[%emt 0:00:06]} 3. Bb5 {[%emt 0:00:04]} g6 {[%emt 0:02:32]} 4. c3 {[%emt 0:00:05]} Nf6 {[%emt 0:00:56]} 5. Qe2 {[%emt 0:00:24]} Qb6 {[%emt 0:06:55]} 6. Na3 {[%emt 0:07:09]} Bg7 {[%emt 0:05:09]} 7. e5 {[%emt 0:14:24]} Nd5 {[%emt 0:02:50]} 8. Qe4 {[%emt 0:02:32]} Nc7 {[%emt 0:03:53]} 9. Be2 {[%emt 0:02:48]} a6 {[%emt 0:13:43]} 10. O-O {[%emt 0:12:57]} O-O {[%emt 0:02:56]} 11. d4 {[%emt 0:01:40]} cxd4 {[%emt 0:06:30]} 12. cxd4 {[%emt 0:00:52]} d5 {[%emt 0:04:55]} 13. Qh4 {[%emt 0:14:14]} Bf5 {[%emt 0:04:12]} 14. b3 {[%emt 0:05:15]} Qb4 {[%emt 0:12:12]} 15. Bb2 {[%emt 0:01:16]} f6 {[%emt 0:02:19]} 16. Rac1 {[%emt 0:02:25]} Ne6 {[%emt 0:01:59]} 17. Nc2 {[%emt 0:07:02]} Bxc2 {[%emt 0:02:07]} 18. Rxc2 {[%emt 0:00:06]} fxe5 {[%emt 0:00:31]} 19. Bc3 {[%emt 0:01:39]} Qd6 {[%emt 0:02:46]} 20. dxe5 {[%emt 0:00:20]} Nxe5 {[%emt 0:00:28]} 21. Nxe5 {[%emt 0:02:10]} Bxe5 {[%emt 0:00:45]} 22. Bxe5 {[%emt 0:00:09]} Qxe5 {[%emt 0:00:05]} 23. Qxe7 {[%emt 0:00:08]} Rf7 {[%emt 0:04:46]} 24. Qa3 {[%emt 0:02:59]} Nd4 {[%emt 0:00:12]} 25. Qb2 {[%emt 0:00:06]} Re8 {[%emt 0:01:03]} 26. Bf3 {[%emt 0:01:04]} Rxf3 {[%emt 0:05:10]} 27. Rd2 {[%emt 0:00:09]} Rd3 {[%emt 0:01:51]} 0-1

[Event "Uhlenkoeper-Open 2024"]
[Site "Uelzen"]
[Date "2024.12.28"]
[Round "4.5"]
[White "Weigand, Anton"]
[Black "Bogomolow, Sergej"]
[Result "0-1"]
[ECO "C77"]
[WhiteElo "2092"]
[BlackElo "2090"]
[Annotator "NA RC"]
[PlyCount "82"]
[EventDate "2024.12.27"]
[EventType "swiss"]
[EventCountry "GER"]
[SourceTitle "playchess.com"]
[Source "ChessBase"]
[SourceQuality "1"]
[TimeControl "40/5400+30:1800+30"]

1. e4 {[%emt 0:00:04]} e5 {[%emt 0:00:02]} 2. Nf3 {[%emt 0:00:04]} Nc6 {[%emt 0:00:03]} 3. Bb5 {[%emt 0:00:04]} a6 {[%emt 0:00:04]} 4. Ba4 {[%emt 0:00:04]} Nf6 {[%emt 0:00:04]} 5. Nc3 {[%emt 0:00:05]} Bc5 {[%emt 0:00:30]} 6. Nxe5 {[%emt 0:01:56]} Nxe5 {[%emt 0:05:17]} 7. d4 {[%emt 0:00:09]} Bd6 {[%emt 0:02:41]} 8. O-O {[%emt 0:00:31]} O-O {[%emt 0:07:17]} 9. dxe5 {[%emt 0:00:22]} Bxe5 {[%emt 0:00:07]} 10. Nd5 {[%emt 0:00:17]} c6 {[%emt 0:07:19]} 11. f4 {[%emt 0:05:03]} cxd5 {[%emt 0:11:30]} 12. fxe5 {[%emt 0:00:10]} Qb6+ {[%emt 0:00:04]} 13. Kh1 {[%emt 0:01:21]} Nxe4 {[%emt 0:00:04]} 14. Qf3 {[%emt 0:03:19]} d6 {[%emt 0:01:11]} 15. c4 {[%emt 0:10:43]} dxe5 {[%emt 0:06:19]} 16. cxd5 {[%emt 0:01:09]} f5 {[%emt 0:04:21]} 17. Bc2 {[%emt 0:07:56]} Bd7 {[%emt 0:07:14]} 18. Be3 {[%emt 0:08:56]} Qxb2 {[%emt 0:02:06]} 19. Bxe4 {[%emt 0:00:10]} fxe4 {[%emt 0:00:20]} 20. Qxe4 {[%emt 0:00:24]} Bf5 {[%emt 0:01:37]} 21. Qh4 {[%emt 0:02:08]} Bd3 {[%emt 0:04:51]} 22. Rxf8+ {[%emt 0:02:21]} Rxf8 {[%emt 0:02:26]} 23. Re1 {[%emt 0:01:18]} Qxa2 {[%emt 0:00:56]} 24. Bc5 {[%emt 0:02:18]} Re8 {[%emt 0:04:45]} 25. d6 {[%emt 0:04:49]} Bb5 {[%emt 0:01:32]} 26. Qe4 {[%emt 0:07:13]} Bc6 {[%emt 0:01:29]} 27. d7 {[%emt 0:00:25]} Rd8 {[%emt 0:02:23]} 28. Qg4 {[%emt 0:00:59]} Rxd7 {[%emt 0:04:30]} 29. h3 {[%emt 0:00:30]} h6 {[%emt 0:02:13]} 30. Re2 {[%emt 0:01:02]} Qb1+ {[%emt 0:07:22]} 31. Kh2 {[%emt 0:00:23]} Rd1 {[%emt 0:00:47]} 32. Qe6+ {[%emt 0:03:40]} Kh7 {[%emt 0:00:15]} 33. Qxe5 {[%emt 0:00:06]} Rh1+ {[%emt 0:00:44]} 34. Kg3 {[%emt 0:00:02]} Qg6+ {[%emt 0:00:34]} 35. Kf4 {[%emt 0:01:15]} Bxg2 {[%emt 0:02:20]} 36. Bd4 {[%emt 0:02:03]} Rf1+ {[%emt 0:02:04]} 37. Ke3 {[%emt 0:00:28]} Rf3+ {[%emt 0:00:40]} 38. Kd2 {[%emt 0:00:16]} Qd3+ {[%emt 0:00:17]} 39. Kc1 {[%emt 0:00:56]} Rf1+ {[%emt 0:00:13]} 40. Kb2 {[%emt 0:00:56]} Rb1+ {[%emt 0:00:11]} 41. Ka2 {[%emt 0:30:05]} Qb3# {[%emt 0:42:18]} 0-1